fUST/lending_fUST_20250531
["ID","MTS","AMOUNT","RATE_DAILY","PERIOD"]
[363223685,1748628658277,-151.0,0.00018445,2]
[363223686,1748628658288,-208.33970809,0.00018445,2]
[363223687,1748628658298,-430.0,0.00018445,2]
[363223688,1748628658307,-520.647503,0.00018445,2]
[363223689,1748628658315,-165.983361,0.00018445,2]
[363223690,1748628658326,-520.647503,0.00018445,2]
[363223691,1748628658335,-165.983361,0.00018445,2]
[363223692,1748628658344,-430.0,0.00018445,2]
[363223693,1748628658353,-1205.537788,0.00018445,2]
[363223694,1748628658362,-1205.537788,0.00018445,2]
[363223695,1748628658370,-430.0,0.00018445,2]
[363223696,1748628658379,-151.0,0.00018445,2]
[363223697,1748628658389,-254.544609,0.00018445,2]
[363223698,1748628658398,-254.544609,0.00018445,2]
[363223699,1748628658407,-430.0,0.00018445,2]
[363223700,1748628658417,-151.0,0.00018445,2]
[363223701,1748628658426,-161.57878815,0.00018445,2]
[363223702,1748628658435,-430.0,0.00018445,2]
[363223703,1748628658444,-430.0,0.00018445,2]
[363223704,1748628658453,-617.158855,0.00018445,2]
[363223705,1748628658463,-617.158855,0.00018445,2]
[363223706,1748628658472,-2335.708636,0.00018445,2]
[363223707,1748628658481,-2335.708636,0.00018445,2]
[363223708,1748628658490,-151.0,0.00018445,2]
[363223709,1748628658499,-300.679261,0.00018445,2]
[363223710,1748628658509,-452.31209915,0.00018445,2]
[363223711,1748628658518,-320.36280278,0.00018445,2]
[363223712,1748628658527,-1044.356687,0.00018445,2]
[363223713,1748628658537,-2580.675736,0.00018445,2]
[363223714,1748628658546,-1044.356687,0.00018445,2]
[363223715,1748628658555,-2580.675736,0.00018445,2]
[363223716,1748628658563,-639.511507,0.00018445,2]
[363223717,1748628658571,-367.45238264,0.00018445,2]
[363223718,1748628658580,-639.511507,0.00018445,2]
[363223719,1748628658589,-1800.0,0.00018487,2]
[363223720,1748628658597,-501.61432745,0.00018507,2]
[363223721,1748628658605,-1000.0,0.00018507,2]
[363223722,1748628658615,-274.21442006,0.00018509,2]
[363223723,1748628658624,-1064.54710437,0.00018548,2]
[363223724,1748628658633,-297.77504,0.0001856,2]
[363223725,1748628658642,-297.77504,0.0001856,2]
[363223726,1748628658650,-655.837478,0.0001856,2]
[363223727,1748628658659,-430.0,0.0001856,2]
[363223728,1748628658669,-430.0,0.0001856,2]
[363223729,1748628658678,-430.0,0.0001856,2]
[363223730,1748628658688,-430.0,0.0001856,2]
[363223731,1748628658696,-442.38,0.0001856,2]
[363223732,1748628658706,-430.0,0.0001856,2]
[363223733,1748628658716,-430.0,0.0001856,2]
[363223734,1748628658725,-430.0,0.0001856,2]
[363223735,1748628658735,-430.0,0.0001856,2]
[363223736,1748628658744,-151.0,0.0001856,2]
[363223737,1748628658754,-430.0,0.0001856,2]
[363223738,1748628658763,-430.0,0.0001856,2]
[363223739,1748628658773,-430.0,0.0001856,2]
[363223740,1748628658782,-430.0,0.0001856,2]
[363223741,1748628658791,-430.0,0.0001856,2]
[363223742,1748628658799,-430.0,0.0001856,2]
[363223743,1748628658808,-430.0,0.0001856,2]
[363223744,1748628658817,-430.0,0.0001856,2]
[363223745,1748628658828,-430.0,0.0001856,2]
[363223746,1748628658837,-430.0,0.0001856,2]
[363223747,1748628658846,-430.0,0.0001856,2]
[363223748,1748628658855,-430.0,0.0001856,2]
[363223749,1748628658864,-430.0,0.0001856,2]
[363223750,1748628658874,-430.0,0.0001856,2]
[363223751,1748628658882,-430.0,0.0001856,2]
[363223752,1748628658891,-430.0,0.0001856,2]
[363223753,1748628658900,-185.85231248,0.0001856,2]
[363223754,1748628658909,-430.0,0.0001856,2]
[363223755,1748628658917,-430.0,0.0001856,2]
[363223756,1748628658927,-1000.0,0.00018568,2]
[363223757,1748628658935,-4118.0,0.00018571,7]
[363223758,1748628658944,-6670.55226137,0.00018619,2]
[363223759,1748628658953,-965.409704,0.00018624,2]
[363223760,1748628658962,-965.409704,0.00018624,2]
[363223761,1748628658971,-181.9,0.00018624,2]
[363223762,1748628658980,-8125.74069168,0.00018624,2]
[363223763,1748628658989,-151.0,0.00018635,2]
[363223764,1748628658998,-164.836426,0.00018635,2]
[363223765,1748628659007,-164.836426,0.00018635,2]
[363223766,1748628659015,-151.0,0.00018635,2]
[363223767,1748628659025,-151.0,0.00018635,2]
[363223768,1748628659034,-152.693127,0.00018666,2]
[363223769,1748628659044,-157.854491,0.00018666,2]
[363223770,1748628659053,-157.854491,0.00018666,2]
[363223771,1748628659062,-1000.0,0.00018666,2]
[363223772,1748628659071,-1000.0,0.00018666,2]
[363223773,1748628659082,-526.39,0.00018683,2]
[363223774,1748628659091,-659.05,0.00018683,2]
[363223775,1748628659101,-437.35,0.00018683,2]
[363223776,1748628659110,-3293.23,0.00018683,2]
[363223777,1748628659120,-5064.71,0.00018684,2]
[363223778,1748628659129,-3092.45,0.00018684,2]
[363223779,1748628659138,-4975.41,0.00018684,2]
[363223780,1748628659147,-438.83,0.00018684,2]
[363223781,1748628659156,-1388.75,0.00018684,2]
[363223782,1748628659166,-6322.34,0.00018684,2]
[363223783,1748628659175,-832.79,0.00018684,2]
[363223784,1748628659185,-830.88,0.00018684,2]
[363223785,1748628659194,-1096.68,0.00018684,2]
[363223786,1748628659206,-494.46,0.00018684,2]
[363223787,1748628659214,-4468.77,0.00018684,2]
[363223788,1748628659223,-5145.3,0.00018684,2]
[363223789,1748628659231,-430.0,0.00018684,2]
[363223790,1748628659240,-585.71,0.00018684,2]
[363223791,1748628659249,-1689.53,0.00018684,2]
[363223792,1748628659258,-3205.2,0.00018684,2]
[363223793,1748628659267,-922.57,0.00018684,2]
[363223794,1748628659277,-151.0,0.00018685,2]
[363223795,1748628659286,-430.0,0.00018685,2]
[363223796,1748628659295,-158.727198,0.00018685,2]
[363223797,1748628659304,-222.547482,0.00018685,2]
[363223798,1748628659314,-158.727198,0.00018685,2]
[363223799,1748628659323,-430.0,0.00018685,2]
[363223800,1748628659334,-222.547482,0.00018685,2]
[363223801,1748628659343,-430.0,0.00018685,2]
[363223802,1748628659353,-650.348497,0.00018685,2]
[363223803,1748628659362,-650.348497,0.00018685,2]
[363223804,1748628659372,-151.0,0.00018685,2]
[363223805,1748628659382,-165.983361,0.00018685,2]
[363223806,1748628659391,-165.983361,0.00018685,2]
[363223807,1748628659401,-430.0,0.00018685,2]
[363223808,1748628659411,-1205.537788,0.00018685,2]
[363223809,1748628659422,-1205.537788,0.00018685,2]
[363223810,1748628659431,-430.0,0.00018685,2]
[363223811,1748628659441,-430.0,0.00018685,2]
[363223812,1748628659450,-151.0,0.00018685,2]
[363223813,1748628659460,-661.01,0.00018685,2]
[363223814,1748628659470,-254.544609,0.00018685,2]
[363223815,1748628659480,-254.544609,0.00018685,2]
[363223816,1748628659491,-430.0,0.00018685,2]
[363223817,1748628659501,-151.0,0.00018685,2]
[363223818,1748628659511,-710.14,0.00018685,2]
[363223819,1748628659520,-430.0,0.00018685,2]
[363223820,1748628659530,-430.0,0.00018685,2]
[363223821,1748628659539,-430.0,0.00018685,2]
[363223822,1748628659549,-430.0,0.00018685,2]
[363223823,1748628659558,-430.0,0.00018685,2]
[363223824,1748628659568,-1065.66,0.00018685,2]
[363223825,1748628659579,-617.158855,0.00018685,2]
[363223826,1748628659588,-1548.12,0.00018685,2]
[363223827,1748628659598,-617.158855,0.00018685,2]
[363223828,1748628659611,-430.0,0.00018685,2]
[363223829,1748628659621,-2335.708636,0.00018685,2]
[363223830,1748628659630,-855.66,0.00018685,2]
[363223831,1748628659640,-430.0,0.00018685,2]
[363223832,1748628659649,-2335.708636,0.00018685,2]
[363223833,1748628659659,-197.13757345,0.00018685,2]
[363223834,1748628659669,-151.0,0.00018685,2]
[363223835,1748628659680,-430.0,0.00018685,2]
[363223836,1748628659690,-734.81,0.00018685,2]
[363223837,1748628659699,-430.0,0.00018685,2]
[363223838,1748628659709,-430.0,0.00018685,2]
[363223839,1748628659720,-2258.89,0.00018685,2]
[363223840,1748628659729,-478.93,0.00018685,2]
[363223841,1748628659740,-430.0,0.00018685,2]
[363223842,1748628659750,-803.69,0.00018685,2]
[363223843,1748628659759,-430.0,0.00018685,2]
[363223844,1748628659769,-1172.59,0.00018685,2]
[363223845,1748628659778,-475.91,0.00018685,2]
[363223846,1748628659787,-549.04,0.00018685,2]
[363223847,1748628659797,-1058.24,0.00018685,2]
[363223848,1748628659807,-1864.88,0.00018685,2]
[363223849,1748628659816,-430.0,0.00018685,2]
[363223850,1748628659826,-430.0,0.00018685,2]
[363223851,1748628659836,-1044.356687,0.00018685,2]
[363223852,1748628659845,-480.88,0.00018685,2]
[363223853,1748628659855,-2580.675736,0.00018685,2]
[363223854,1748628659865,-2183.03,0.00018685,2]
[363223855,1748628659875,-1044.356687,0.00018685,2]
[363223856,1748628659884,-2580.675726,0.00018685,2]
[363223857,1748628659894,-1372.05,0.00018685,2]
[363223858,1748628659903,-1629.45,0.00018685,2]
[363223859,1748628659913,-500.0,0.00018685,2]
[363223860,1748628659922,-494.7,0.00018685,2]
[363223861,1748628659933,-430.0,0.00018685,2]
[363223862,1748628659943,-639.511507,0.00018685,2]
[363223863,1748628659952,-639.511507,0.00018685,2]
[363223864,1748628659961,-960.93,0.00018685,2]
[363223865,1748628659971,-430.0,0.00018685,2]
[363223866,1748628659980,-430.0,0.00018685,2]
[363223867,1748628659990,-718.44,0.00018685,2]
[363223868,1748628659999,-6891.09,0.00018685,2]
[363223869,1748628660009,-430.0,0.00018685,2]
[363223870,1748628660019,-511.65,0.00018685,2]
[363223871,1748628660028,-430.0,0.00018685,2]
[363223872,1748628660037,-3500.14,0.00018685,2]
[363223873,1748628660047,-430.0,0.00018685,2]
[363223874,1748628660057,-430.0,0.00018685,2]
[363223875,1748628660067,-430.0,0.00018685,2]
[363223876,1748628660077,-1228.28,0.00018685,2]
[363223877,1748628660086,-430.0,0.00018685,2]
[363223878,1748628660204,-370.45,0.00018685,2]
[363223879,1748628660215,-3133.61,0.00018685,2]
[363223880,1748628660224,-347.03578636,0.00018685,2]
[363223881,1748628660234,-296.01600023,0.00018685,2]
[363223882,1748628660245,-430.0,0.00018685,2]
[363223883,1748628660255,-809.19,0.00018685,2]
[363223884,1748628660265,-1205.08,0.00018685,2]
[363223885,1748628660275,-430.0,0.00018685,2]
[363223886,1748628660287,-479.75,0.00018685,2]
[363223887,1748628660297,-652.3,0.00018685,2]
[363223888,1748628660306,-151.0,0.00018686,2]
[363223889,1748628660316,-151.0,0.00018686,2]
[363223890,1748628660327,-151.0,0.00018686,2]
[363223891,1748628660337,-151.0,0.00018686,2]
[363223892,1748628660349,-430.0,0.00018686,2]
[363223893,1748628660360,-1610.76,0.00018686,2]
[363223894,1748628660371,-6377.37,0.00018686,2]
[363223895,1748628660383,-430.0,0.00018686,2]
[363223896,1748628660396,-532.04,0.00018686,2]
[363223897,1748628660407,-1824.07,0.00018686,2]
[363223898,1748628660418,-1305.58,0.00018686,2]
[363223899,1748628660427,-529.04,0.00018686,2]
[363223900,1748628660438,-1536.84,0.00018686,2]
[363223901,1748628660447,-452.37,0.00018686,2]
[363223902,1748628660457,-1533.3,0.00018686,2]
[363223903,1748628660467,-3646.79,0.00018686,2]
[363223904,1748628660478,-1682.8,0.00018686,2]
[363223905,1748628660488,-151.0,0.00018687,2]
[363223906,1748628660498,-151.0,0.00018687,2]
[363223907,1748628660507,-343.177287,0.00018687,2]
[363223908,1748628660516,-343.177287,0.00018687,2]
[363223909,1748628660526,-520.647503,0.00018687,2]
[363223910,1748628660536,-520.647503,0.00018687,2]
[363223911,1748628660548,-160.97790675,0.00018718,2]
[363223912,1748628660557,-297.77504,0.00018719,2]
[363223913,1748628660567,-297.77504,0.00018719,2]
[363223914,1748628660578,-965.409704,0.00018719,2]
[363223915,1748628660588,-655.837478,0.00018719,2]
[363223916,1748628660598,-965.409704,0.00018719,2]
[363223917,1748628660608,-151.0,0.00018719,2]
[363223918,1748628660619,-151.0,0.00018719,2]
[363223919,1748628660628,-430.0,0.00018719,2]
[363223920,1748628660638,-430.0,0.00018719,2]
[363223921,1748628660647,-151.0,0.00018719,2]
[363223922,1748628660656,-151.0,0.00018719,2]
[363223923,1748628660666,-430.0,0.00018719,2]
[363223924,1748628660675,-430.0,0.00018719,2]
[363223925,1748628660685,-617.158855,0.00018719,2]
[363223926,1748628660694,-617.158854,0.00018719,2]
[363223927,1748628660704,-2335.708636,0.00018719,2]
[363223928,1748628660713,-2335.70862823,0.00018719,2]
[363223929,1748628660722,-151.0,0.00018719,2]
[363223930,1748628660731,-1044.356687,0.00018719,2]
[363223931,1748628660740,-1044.356679,0.00018719,2]
[363223932,1748628660750,-639.511507,0.00018719,2]
[363223933,1748628660760,-639.511507,0.00018719,2]
[363223934,1748628660769,-5000.0,0.0001872,2]
[363223935,1748628660779,-759.29021878,0.00018772,2]
[363223936,1748628660789,-151.0,0.000188,2]
[363223937,1748628660799,-151.0,0.00018833,2]
[363223938,1748628660809,-164.836426,0.00018833,2]
[363223939,1748628660818,-164.836426,0.00018833,2]
[363223940,1748628660830,-157.854491,0.00018833,2]
[363223941,1748628660840,-157.854491,0.00018833,2]
[363223942,1748628660851,-151.0,0.00018833,2]
[363223943,1748628660861,-430.0,0.00018833,2]
[363223944,1748628660870,-430.0,0.00018833,2]
[363223945,1748628660880,-442.38,0.00018833,2]
[363223946,1748628660890,-430.0,0.00018833,2]
[363223947,1748628660900,-430.0,0.00018833,2]
[363223948,1748628660909,-158.727198,0.00018833,2]
[363223949,1748628660919,-222.547482,0.00018833,2]
[363223950,1748628660929,-158.727198,0.00018833,2]
[363223951,1748628660939,-222.547482,0.00018833,2]
[363223952,1748628660949,-330.93526746,0.00018833,2]
[363223953,1748628660959,-430.0,0.00018833,2]
[363223954,1748628660968,-650.348497,0.00018833,2]
[363223955,1748628660978,-650.348497,0.00018833,2]
[363223956,1748628660987,-151.0,0.00018833,2]
[363223957,1748628660997,-430.0,0.00018833,2]
[363223958,1748628661006,-165.983361,0.00018833,2]
[363223959,1748628661016,-516.47579514,0.00018833,2]
[363223960,1748628661025,-165.983361,0.00018833,2]
[363223961,1748628661035,-430.0,0.00018833,2]
[363223962,1748628661045,-430.0,0.00018833,2]
[363223963,1748628661055,-1205.537788,0.00018833,2]
[363223964,1748628661064,-430.0,0.00018833,2]
[363223965,1748628661073,-1205.537788,0.00018833,2]
[363223966,1748628661084,-430.0,0.00018833,2]
[363223967,1748628661094,-430.0,0.00018833,2]
[363223968,1748628661103,-254.544609,0.00018833,2]
[363223969,1748628661113,-430.0,0.00018833,2]
[363223970,1748628661123,-254.544609,0.00018833,2]
[363223971,1748628661133,-430.0,0.00018833,2]
[363223972,1748628661143,-430.0,0.00018833,2]
[363223973,1748628661152,-1500.0,0.00018837,2]
[363223974,1748628661161,-1050.77853482,0.00018847,2]
[363223975,1748628661170,-1500.0,0.00018847,2]
[363223976,1748628661180,-8125.74069168,0.00018866,2]
[363223977,1748628661189,-151.0,0.000189,2]
[363223978,1748628661199,-151.0,0.000189,2]
[363223979,1748628661212,-151.0,0.000189,2]
[363223980,1748628661222,-213.74995686,0.000189,2]
[363223981,1748628661231,-297.77504,0.00018909,2]
[363223982,1748628661242,-297.77504,0.00018909,2]
[363223983,1748628661251,-151.0,0.00018909,2]
[363223984,1748628661261,-151.0,0.00018909,2]
[363223985,1748628661270,-655.837478,0.00018909,2]
[363223986,1748628661279,-343.177287,0.00018909,2]
[363223987,1748628661289,-343.177287,0.00018909,2]
[363223988,1748628661298,-520.647503,0.00018909,2]
[363223989,1748628661307,-520.647503,0.00018909,2]
[363223990,1748628661316,-1018.43483232,0.00018938,2]
[363223991,1748628661325,-526.39,0.00018957,2]
[363223992,1748628661337,-659.05,0.00018957,2]
[363223993,1748628661347,-437.35,0.00018957,2]
[363223994,1748628661356,-3293.23,0.00018957,2]
[363223995,1748628661364,-5064.71,0.00018958,2]
[363223996,1748628661374,-3092.45,0.00018958,2]
[363223997,1748628661383,-4975.41,0.00018958,2]
[363223998,1748628661393,-438.83,0.00018958,2]
[363223999,1748628661402,-1388.75,0.00018958,2]
[363224000,1748628661411,-6322.34,0.00018958,2]
[363224001,1748628661421,-832.79,0.00018958,2]
[363224002,1748628661430,-830.88,0.00018958,2]
[363224003,1748628661439,-1096.68,0.00018958,2]
[363224004,1748628661450,-494.46,0.00018958,2]
[363224005,1748628661459,-4468.77,0.00018958,2]
[363224006,1748628661468,-5145.3,0.00018958,2]
[363224007,1748628661477,-430.0,0.00018958,2]
[363224008,1748628661486,-585.71,0.00018958,2]
[363224009,1748628661495,-1689.53,0.00018958,2]
[363224010,1748628661504,-3205.2,0.00018958,2]
[363224011,1748628661513,-922.57,0.00018958,2]
[363224012,1748628661523,-309.6720931,0.00018959,2]
[363224013,1748628661532,-163.6176472,0.00018959,2]
[363224014,1748628661542,-188.8045275,0.00018959,2]
[363224015,1748628661552,-151.0,0.00018959,2]
[363224016,1748628661561,-559.0,0.00018959,2]
[363224017,1748628661571,-151.0,0.00018959,2]
[363224018,1748628661581,-430.0,0.00018959,2]
[363224019,1748628661591,-430.0,0.00018959,2]
[363224020,1748628661600,-430.0,0.00018959,2]
[363224021,1748628661609,-430.0,0.00018959,2]
[363224022,1748628661619,-430.0,0.00018959,2]
[363224023,1748628661628,-661.01,0.00018959,2]
[363224024,1748628661637,-430.0,0.00018959,2]
[363224025,1748628661646,-710.14,0.00018959,2]
[363224026,1748628661655,-430.0,0.00018959,2]
[363224027,1748628661664,-430.0,0.00018959,2]
[363224028,1748628661672,-430.0,0.00018959,2]
[363224029,1748628661682,-415.52,0.00018959,2]
[363224030,1748628661691,-430.0,0.00018959,2]
[363224031,1748628661700,-1065.66,0.00018959,2]
[363224032,1748628661710,-1548.12,0.00018959,2]
[363224033,1748628661719,-430.0,0.00018959,2]
[363224034,1748628661729,-855.66,0.00018959,2]
[363224035,1748628661738,-430.0,0.00018959,2]
[363224036,1748628661747,-430.0,0.00018959,2]
[363224037,1748628661757,-734.81,0.00018959,2]
[363224038,1748628661766,-430.0,0.00018959,2]
[363224039,1748628661776,-175.65118638,0.00018959,2]
[363224040,1748628661785,-2258.89,0.00018959,2]
[363224041,1748628661795,-478.93,0.00018959,2]
[363224042,1748628661805,-430.0,0.00018959,2]
[363224043,1748628661814,-803.69,0.00018959,2]
[363224044,1748628661823,-430.0,0.00018959,2]
[363224045,1748628661834,-1172.59,0.00018959,2]
[363224046,1748628661844,-475.91,0.00018959,2]
[363224047,1748628661855,-549.04,0.00018959,2]
[363224048,1748628661865,-1058.24,0.00018959,2]
[363224049,1748628661874,-1864.88,0.00018959,2]
[363224050,1748628661884,-430.0,0.00018959,2]
[363224051,1748628661894,-430.0,0.00018959,2]
[363224052,1748628661903,-480.88,0.00018959,2]
[363224053,1748628661911,-2183.03,0.00018959,2]
[363224054,1748628661920,-1372.05,0.00018959,2]
[363224055,1748628661928,-1629.45,0.00018959,2]
[363224056,1748628661937,-507.14631814,0.00018959,2]
[363224057,1748628661946,-494.7,0.00018959,2]
[363224058,1748628661955,-430.0,0.00018959,2]
[363224059,1748628661965,-960.93,0.00018959,2]
[363224060,1748628661974,-210.86174846,0.00018959,2]
[363224061,1748628661983,-718.44,0.00018959,2]
[363224062,1748628661992,-6891.09,0.00018959,2]
[363224063,1748628662002,-430.0,0.00018959,2]
[363224064,1748628662011,-511.65,0.00018959,2]
[363224065,1748628662021,-430.0,0.00018959,2]
[363224066,1748628662031,-3500.14,0.00018959,2]
[363224067,1748628662040,-430.0,0.00018959,2]
[363224068,1748628662051,-1228.28,0.00018959,2]
[363224069,1748628662061,-430.0,0.00018959,2]
[363224070,1748628662070,-3133.61,0.00018959,2]
[363224071,1748628662080,-430.0,0.00018959,2]
[363224072,1748628662090,-809.19,0.00018959,2]
[363224073,1748628662100,-1205.08,0.00018959,2]
[363224074,1748628662109,-373.4,0.00018959,2]
[363224075,1748628662118,-652.3,0.00018959,2]
[363224076,1748628662127,-164.836426,0.0001896,2]
[363224077,1748628662137,-164.836426,0.0001896,2]
[363224078,1748628662146,-158.727198,0.0001896,2]
[363224079,1748628662156,-222.547482,0.0001896,2]
[363224080,1748628662165,-158.727198,0.0001896,2]
[363224081,1748628662175,-222.547482,0.0001896,2]
[363224082,1748628662184,-650.348497,0.0001896,2]
[363224083,1748628662194,-650.348497,0.0001896,2]
[363224084,1748628662207,-151.0,0.0001896,2]
[363224085,1748628662216,-165.983361,0.0001896,2]
[363224086,1748628662225,-165.983361,0.0001896,2]
[363224087,1748628662234,-1205.537788,0.0001896,2]
[363224088,1748628662244,-1205.537788,0.0001896,2]
[363224089,1748628662253,-254.544609,0.0001896,2]
[363224090,1748628662263,-254.544609,0.0001896,2]
[363224091,1748628662271,-1610.76,0.0001896,2]
[363224092,1748628662282,-6377.37,0.0001896,2]
[363224093,1748628662292,-242.64550371,0.0001896,2]
[363224094,1748628662301,-532.04,0.0001896,2]
[363224095,1748628662310,-1824.07,0.0001896,2]
[363224096,1748628662319,-1305.58,0.0001896,2]
[363224097,1748628662330,-529.04,0.0001896,2]
[363224098,1748628662442,-1536.84,0.0001896,2]
[363224099,1748628662452,-452.37,0.0001896,2]
[363224100,1748628662462,-1533.3,0.0001896,2]
[363224101,1748628662471,-3646.79,0.0001896,2]
[363224102,1748628662480,-1682.8,0.0001896,2]
[363224103,1748628662489,-157.854491,0.00018961,2]
[363224104,1748628662498,-157.854491,0.00018961,2]
[363224105,1748628662508,-151.0,0.00018961,2]
[363224106,1748628662518,-1500.0,0.00018968,2]
[363224107,1748628662527,-1500.0,0.00018968,2]
[363224108,1748628662537,-1500.0,0.00018968,2]
[363224109,1748628662547,-1500.0,0.00018968,2]
[363224110,1748628662556,-225.99853779,0.00018968,2]
[363224111,1748628662566,-1500.0,0.00018968,2]
[363224112,1748628662576,-729.11349722,0.00018968,2]
[363224113,1748628662589,-572.1885402,0.00018986,2]
[363224114,1748628662598,-965.409704,0.00018993,2]
[363224115,1748628662609,-965.409704,0.00018993,2]
[363224116,1748628662619,-430.0,0.00018993,2]
[363224117,1748628662628,-430.0,0.00018993,2]
[363224118,1748628662638,-151.0,0.00019,2]
[363224119,1748628662648,-304.41326638,0.00019055,2]
[363224120,1748628662658,-961.0,0.00019067,2]
[363224121,1748628662668,-2228.0,0.00019067,2]
[363224122,1748628662678,-708.0,0.00019067,2]
[363224123,1748628662687,-405.0,0.00019068,2]
[363224124,1748628662697,-151.0,0.000191,2]
[363224125,1748628662707,-3000.0,0.000191,2]
[363224126,1748628662717,-8125.74069168,0.00019107,2]
[363224127,1748628662726,-297.77504,0.00019107,2]
[363224128,1748628662736,-297.77504,0.00019107,2]
[363224129,1748628662746,-655.837478,0.00019107,2]
[363224130,1748628662756,-151.0,0.00019107,2]
[363224131,1748628662766,-151.0,0.00019107,2]
[363224132,1748628662776,-151.0,0.00019107,2]
[363224133,1748628662785,-151.000001,0.00019107,2]
[363224134,1748628662795,-430.0,0.00019107,2]
[363224135,1748628662805,-430.0,0.00019107,2]
[363224136,1748628662815,-442.38,0.00019107,2]
[363224137,1748628662824,-430.0,0.00019107,2]
[363224138,1748628662837,-151.0,0.00019107,2]
[363224139,1748628662846,-343.177287,0.00019107,2]
[363224140,1748628662855,-343.177287,0.00019107,2]
[363224141,1748628662865,-345.02,0.00019107,2]
[363224142,1748628662875,-502.9,0.00019107,2]
[363224143,1748628662885,-520.647503,0.00019107,2]
[363224144,1748628662895,-520.647503,0.00019107,2]
[363224145,1748628662904,-430.0,0.00019107,2]
[363224146,1748628662914,-430.0,0.00019107,2]
[363224147,1748628662924,-430.0,0.00019107,2]
[363224148,1748628662934,-430.0,0.00019107,2]
[363224149,1748628662944,-430.0,0.00019107,2]
[363224150,1748628662954,-430.0,0.00019107,2]
[363224151,1748628662964,-430.0,0.00019107,2]
[363224152,1748628662973,-3000.0,0.0001911,2]
[363224153,1748628662983,-164.836426,0.00019112,2]
[363224154,1748628662992,-164.836426,0.00019112,2]
[363224155,1748628663002,-1565.02838252,0.00019116,2]
[363224156,1748628663012,-197.938,0.00019119,2]
[363224157,1748628663022,-3000.0,0.0001912,2]
[363224158,1748628663033,-3000.0,0.0001913,2]
[363224159,1748628663044,-1550.88034,0.0001913,2]
[363224160,1748628663055,-151.0,0.00019138,2]
[363224161,1748628663064,-158.727198,0.00019138,2]
[363224162,1748628663074,-222.547482,0.00019138,2]
[363224163,1748628663085,-158.7272,0.00019138,2]
[363224164,1748628663095,-222.547486,0.00019138,2]
[363224165,1748628663105,-650.348497,0.00019138,2]
[363224166,1748628663115,-650.348496,0.00019138,2]
[363224167,1748628663125,-151.0,0.00019138,2]
[363224168,1748628663135,-165.983361,0.00019138,2]
[363224169,1748628663144,-165.983364,0.00019138,2]
[363224170,1748628663155,-1205.537788,0.00019138,2]
[363224171,1748628663165,-1205.53778501,0.00019138,2]
[363224172,1748628663175,-254.544609,0.00019138,2]
[363224173,1748628663186,-254.544605,0.00019138,2]
[363224174,1748628663196,-3000.0,0.0001914,2]
[363224175,1748628663208,-5325.811402,0.0001915,2]
[363224176,1748628663219,-6094.05046676,0.00019157,2]
[363224177,1748628663229,-500.0,0.00019173,2]
[363224178,1748628663239,-500.0,0.00019173,2]
[363224179,1748628663251,-296.4592151,0.00019173,2]
[363224180,1748628663261,-500.0,0.00019173,2]
[363224181,1748628663270,-500.0,0.00019173,2]
[363224182,1748628663281,-500.0,0.00019173,2]
[363224183,1748628663292,-500.0,0.00019173,2]
[363224184,1748628663303,-399.05799723,0.00019173,2]